fUST/lending_fUST_20250826
["ID","MTS","AMOUNT","RATE_DAILY","PERIOD"]
[381356024,1756150159317,-500.0,0.00029322,2]
[381356025,1756150159338,-500.0,0.00029322,2]
[381356026,1756150159358,-500.0,0.00029322,2]
[381356027,1756150159381,-607.17749966,0.00029322,2]
[381356028,1756150159403,-500.0,0.00029322,2]
[381356029,1756150159445,-500.0,0.00029322,2]
[381356030,1756150159483,-500.0,0.00029322,2]
[381356031,1756150159506,-368.24185191,0.00029322,2]
[381356032,1756150159537,-190.87437696,0.00029322,2]
[381356033,1756150159565,-152.91,0.00029323,15]
[381356034,1756150159586,-377.11592273,0.000294,5]
[381356035,1756150159607,-500.0,0.000294,5]
[381356036,1756150159632,-500.0,0.000294,5]
[381356037,1756150159652,-500.0,0.000294,5]
[381356038,1756150159672,-500.0,0.000294,5]
[381356039,1756150159692,-500.0,0.000294,5]
[381356040,1756150159714,-500.0,0.000294,5]
[381356041,1756150159733,-500.0,0.000294,5]
[381356042,1756150159754,-500.0,0.000294,5]
[381356043,1756150159774,-500.0,0.000294,5]
[381356044,1756150159795,-316.66,0.000294,7]
[381356045,1756150159816,-152.91,0.00029423,15]
[381356046,1756150159836,-500.0,0.000295,5]
[381356047,1756150159856,-334.21355014,0.000295,5]
[381356048,1756150159889,-976.93096788,0.00029503,2]
[381356049,1756150159910,-152.91,0.00029523,15]
[381356050,1756150159932,-152.97,0.00029623,15]
[381356051,1756150159952,-12725.4514445,0.00029717,2]
[381356052,1756150159977,-300.0,0.00029727,20]
[381356053,1756150160000,-300.0,0.00029727,20]
[381356054,1756150160024,-300.0,0.00029727,20]
[381356055,1756150160048,-300.0,0.00029727,20]
[381356056,1756150160072,-300.0,0.00029727,20]
[381356057,1756150160100,-300.0,0.00029727,20]
[381356058,1756150160126,-300.0,0.00029727,20]
[381356059,1756150160150,-300.0,0.00029727,20]
[381356060,1756150160172,-300.0,0.00029727,20]
[381356061,1756150160192,-500.0,0.00029948,5]
[381356062,1756150160212,-500.0,0.00029948,5]
[381356063,1756150160231,-671.51818524,0.00029948,5]
[381356064,1756150160251,-501.77249218,0.00029948,5]
[381356065,1756150160270,-486.20982051,0.00029948,5]
[381356066,1756150160290,-1000.0,0.00029948,5]
[381356067,1756150160310,-1000.0,0.00029948,5]
[381356068,1756150160329,-188.06,0.0002997,30]
[381356069,1756150160358,-281.08098346,0.00030259,13]
[381356070,1756150160380,-420.0,0.00030402,2]
[381356071,1756150160400,-1500.0,0.00030496,5]
[381356072,1756150160422,-1500.0,0.00030496,5]
[381356073,1756150160442,-556.60290464,0.00030619,2]
[381356074,1756150160462,-2000.0,0.00031044,5]
[381356075,1756150160482,-2000.0,0.00031044,5]
[381356076,1756150160502,-499.08850892,0.00031489,28]
[381356077,1756150160521,-302.0,0.00031541,2]
[381356078,1756150160544,-10565.49525958,0.00031547,2]
[381356079,1756150160564,-2631.7330719,0.00031592,5]
[381356080,1756150160586,-1162.05769803,0.00031592,5]
[381356081,1756150160605,-1033.159576,0.000316,7]
[381356082,1756150160630,-813.71,0.00031636,10]
[381356083,1756150160650,-257.53,0.00031637,3]
[381356084,1756150160669,-772.59,0.00031637,3]
[381356085,1756150160690,-500.0,0.00031646,2]
[381356086,1756150160710,-425.59810282,0.00031646,2]
[381356087,1756150160730,-500.0,0.00031646,2]
[381356088,1756150160751,-500.0,0.00031646,2]
[381356089,1756150160772,-500.0,0.00031646,2]
[381356090,1756150160794,-636.34312345,0.00031646,2]
[381356091,1756150160817,-500.0,0.00031646,2]
[381356092,1756150160838,-500.0,0.00031646,2]
[381356093,1756150160859,-500.0,0.00031646,2]
[381356094,1756150160881,-500.0,0.00031646,2]
[381356095,1756150160901,-500.0,0.00031646,2]
[381356096,1756150160922,-500.0,0.00031646,2]
[381356097,1756150160943,-500.0,0.00031646,2]
[381356098,1756150160962,-500.0,0.00031646,2]
[381356099,1756150160982,-500.0,0.00031646,2]
[381356100,1756150161002,-500.0,0.00031646,2]
[381356101,1756150161022,-500.0,0.00031646,2]
[381356102,1756150161042,-500.0,0.00031646,2]
[381356103,1756150161062,-250.0,0.00031646,2]
[381356104,1756150161082,-348.36114818,0.00031646,2]
[381356105,1756150161102,-2407.29,0.000317,7]
[381356106,1756150161121,-311.0,0.00031832,2]
[381356107,1756150161142,-976.93096788,0.0003197,2]
[381356108,1756150161163,-11197.8515586,0.0003198,2]
[381356109,1756150173401,-288.09008906,0.00028739,2]
[381356110,1756150173427,-5000.0,0.00029029,2]
[381356111,1756150173456,-10507.8353198,0.000294,2]
[381356177,1756150232454,-160.0,0.00029029,2]
[381356179,1756150232464,-207.16850646,0.00029298,2]
[381356181,1756150232474,-185.72848102,0.00029371,2]
[381356183,1756150232484,-1200.0,0.00029398,2]
[381356185,1756150232493,-300.0,0.00029399,2]
[381356188,1756150232502,-300.0,0.00029399,2]
[381356190,1756150232512,-300.0,0.00029399,2]
[381356193,1756150232521,-300.0,0.00029399,2]
[381356197,1756150232531,-6091.5030125,0.000294,2]
[381356657,1756150238286,-567.95000424,0.000294,2]
[381356659,1756150238298,-32832.71166346,0.000294,2]
[381356661,1756150238308,-163.0,0.00031,120]
[381356663,1756150238317,-158.0,0.00031128,120]
[381356665,1756150238327,-240.02769707,0.00031547,2]
[381356667,1756150238337,-207.16850646,0.00031547,2]
[381356669,1756150238347,-515.06,0.00031637,3]
[381356671,1756150238356,-797.74,0.00031637,3]
[381356673,1756150238365,-225.0,0.00031646,2]
[381356675,1756150238375,-511.90861107,0.00031646,2]
[381356677,1756150238384,-55864.52995177,0.00031647,20]
[381356678,1756150238395,-77657.32203536,0.00031647,20]
[381356679,1756150238412,-5261.10802629,0.00031647,20]
[381356754,1756150243579,-19824.06273487,0.00031647,20]
[381356755,1756150243636,-494.3173247,0.00031647,20]
[381356757,1756150243787,-39000.000004,0.00031647,20]
[381356814,1756150246583,-199.0,0.000309,120]
[381356816,1756150246592,-271.8,0.00031647,20]
[381356820,1756150246638,-53720.49713333,0.00031647,20]
[381356821,1756150246649,-1572.52540484,0.00031647,20]
[381356822,1756150246694,-5884.07,0.00031647,20]
[381356823,1756150246707,-1546.22064083,0.00031647,20]
[381356826,1756150247887,-1372.25419354,0.00031647,20]
[381356827,1756150247899,-1088.6998377,0.00031647,20]
[381356828,1756150254446,742.46789648,0.000199,2]
[381356829,1756150254579,742.46789632,0.00021627,2]
[381356830,1756150254728,289.32280283,0.00023353,2]
[381356831,1756150254756,453.14509349,0.00023353,2]
[381356832,1756150254852,742.46789632,0.0002508,2]
[381356833,1756150254987,742.46789632,0.00026806,6]
[381356834,1756150365518,164.020419,0.00013699,2]
[381356835,1756150365743,164.020419,0.00023182,2]
[381356836,1756150367951,830.19180663,0.0002692,2]
[381356837,1756150367973,4169.80819337,0.0002692,2]
[381356838,1756150376297,1830.19180663,0.0002692,2]
[381356839,1756150376320,1619.15179175,0.0002692,2]
[381356840,1756150385816,4380.84820825,0.0002692,2]
[381356841,1756150385839,619.15179175,0.0002692,2]
[381356842,1756150400698,5000.0,0.0002692,2]
[381356844,1756150416565,380.84820825,0.0002692,2]
[381356845,1756150416589,4619.15179175,0.0002692,2]
[381356846,1756150432523,1380.84820825,0.0002692,2]
[381356847,1756150432547,3619.15179175,0.0002692,2]
[381356848,1756150448440,2380.84820825,0.0002692,2]
[381356849,1756150448462,2619.15179175,0.0002692,2]
[381356850,1756150457145,724.42593869,0.000199,2]
[381356851,1756150457259,724.42593847,0.00021627,2]
[381356852,1756150457628,724.42593847,0.00023353,2]
[381356853,1756150457732,724.42593847,0.0002508,2]
[381356854,1756150457890,483.14445415,0.00026806,6]
[381356855,1756150457916,241.28148432,0.00026806,6]
[381356856,1756150463285,5000.0,0.0002692,2]
[381356857,1756150479191,758.71851568,0.0002692,2]
[381356858,1756150479216,4241.28148432,0.0002692,2]
[381356859,1756150494375,1758.71851568,0.0002692,2]
[381356860,1756150494397,3241.28148432,0.0002692,2]
[381356861,1756150510931,2758.71851568,0.0002692,2]
[381356862,1756150510953,2241.28148432,0.0002692,2]
[381356863,1756150526651,3758.71851568,0.0002692,2]
[381356864,1756150526675,1241.28148432,0.0002692,2]
[381356865,1756150542528,4758.71851568,0.0002692,2]
[381356866,1756150542560,241.28148432,0.0002692,2]
[381356867,1756150558317,5000.0,0.0002692,2]
[381356868,1756150574556,758.71851568,0.0002692,2]
[381356869,1756150574579,4241.28148432,0.0002692,2]
[381356870,1756150582344,1758.71851568,0.0002692,2]
[381356871,1756150582365,3241.28148432,0.0002692,2]
[381356872,1756150590538,2758.71851568,0.0002692,2]
[381356873,1756150590561,2241.28148432,0.0002692,2]
[381356874,1756150606407,2901.20553905,0.0002692,2]
[381356875,1756150622321,161.93016426,0.00026361,5]
[381356876,1756150625976,187.54374853,0.00026361,5]
[381356877,1756150651878,508.03906384,0.000199,2]
[381356878,1756150651907,249.51552756,0.000199,2]
[381356879,1756150652212,757.55459117,0.00021627,2]
[381356880,1756150652277,757.55459117,0.00023353,2]
[381356881,1756150652317,757.55459117,0.0002508,2]
[381356882,1756150652443,757.55459117,0.00026806,6]
[381356883,1756150660687,1053.80978668,0.0002692,2]
[381356884,1756150681283,170.61,0.00018581,120]
[381356885,1756150682231,161.93016425,0.00026361,5]
[381356887,1756150845045,631.29549269,0.000199,2]
[381356888,1756150845318,631.29549264,0.00021627,2]
[381356889,1756150845365,241.9351715,0.00023353,2]
[381356890,1756150845394,389.36032114,0.00023353,2]
[381356891,1756150845434,631.29549264,0.0002508,2]
[381356892,1756150845498,631.29549264,0.00026806,6]
[381356893,1756150900907,609.32726215,0.0002692,2]
[381356894,1756150962709,1580.71468002,0.0002692,2]
[381356895,1756150963735,790.35734001,0.0002692,2]
[381356896,1756150964670,395.17867001,0.0002692,2]
[381356897,1756150965612,197.589335,0.0002692,2]
[381356898,1756151048540,587.79058681,0.000199,2]
[381356899,1756151048735,187.09081958,0.00021627,2]
[381356900,1756151048762,400.69976705,0.00021627,2]
[381356901,1756151048885,587.79058663,0.00023353,2]
[381356902,1756151049066,587.79058663,0.0002508,2]
[381356903,1756151049134,587.79058663,0.00026806,6]
[381356904,1756151064755,3835.92847306,0.0002692,2]
[381356905,1756151064779,1164.07152694,0.0002692,2]
[381356906,1756151065034,431.837434,0.00025778,2]
[381356907,1756151065370,315.49928812,0.00026044,2]
[381356908,1756151080543,4088.59175094,0.0002692,2]
[381356909,1756151080566,911.40824906,0.0002692,2]
[381356910,1756151096260,5000.0,0.0002692,2]
[381356911,1756151104494,88.59175094,0.000253,2]
[381356912,1756151104518,495.96202639,0.000253,2]
[381356913,1756151126903,197.589335,0.0002692,2]
[381356914,1756151126942,197.589335,0.0002692,2]
[381356915,1756151126973,197.589335,0.0002692,2]
[381356916,1756151127591,296.3840025,0.0002692,2]
[381356917,1756151128889,316.52182163,0.0002692,2]
[381356918,1756151130098,158.26091082,0.0002692,2]
[381356919,1756151143167,-153.61989224,0.00028009,94]
[381356920,1756151143187,-300.0,0.00028056,2]
[381356921,1756151143208,-300.0,0.00028056,2]
[381356922,1756151143230,-300.0,0.00028056,2]
[381356923,1756151143254,-300.0,0.00028056,2]
[381356924,1756151143275,-300.0,0.00028056,2]
[381356925,1756151143296,-87.5067508,0.00028056,2]
[381356926,1756151143400,158.26091081,0.0002692,2]
[381356927,1756151155564,3981.84232285,0.0002692,2]
[381356928,1756151155588,1018.15767715,0.0002692,2]
[381356929,1756151176032,3562.443276,0.0002692,2]
[381356930,1756151191277,1419.39904685,0.0002692,2]
[381356931,1756151191302,466.84406958,0.0002692,2]
[381356933,1756151206947,500.0,0.0002692,2]
[381356935,1756151229124,-290.1292422,0.00028056,2]
[381356936,1756151233096,-234.11063142,0.00028056,2]
[381356937,1756151238082,-588.25337558,0.00028056,2]
[381356938,1756151238103,-86.1474222,0.00028056,2]
[381356940,1756151248470,489.8254891,0.000199,2]
[381356941,1756151248582,489.82548885,0.00021627,2]
[381356942,1756151248713,489.82548885,0.00023353,2]
[381356943,1756151249424,489.82548885,0.0002508,2]
[381356944,1756151249529,489.82548885,0.00026806,6]
[381356948,1756151285835,2584.02848592,0.00026769,2]
[381356949,1756151285861,6000.0,0.00026769,2]
[381356950,1756151285883,1415.97151408,0.00026769,2]
[381356951,1756151343084,173.0,0.0002692,2]
[381356952,1756151349085,-173.48406566,0.00026948,2]
[381356953,1756151349107,-1000.0,0.00027006,2]
[381356954,1756151349126,-1368.739087,0.00027049,2]
[381356955,1756151349146,-1791.60981877,0.00027963,2]
[381356956,1756151349169,-300.0,0.00028055,2]
[381356957,1756151349191,-213.34377725,0.00028056,2]
[381356958,1756151349214,-500.0,0.00028056,2]
[381356959,1756151349236,-500.0,0.00028056,2]
[381356960,1756151349257,-310.89154976,0.00028056,2]
[381356961,1756151349277,-500.0,0.00028056,2]
[381356962,1756151349298,-500.0,0.00028056,2]
[381356963,1756151349319,-326.32939356,0.00028056,2]
[381356964,1756151349338,-500.0,0.00028056,2]
[381356965,1756151349361,-500.0,0.00028056,2]
[381356966,1756151349382,-500.0,0.00028056,2]
[381356967,1756151349402,-500.0,0.00028056,2]
[381356968,1756151349426,-551.62810108,0.00028056,2]
[381356969,1756151349445,-500.0,0.00028056,2]
[381356970,1756151349468,-500.0,0.00028056,2]
[381356971,1756151349488,-500.0,0.00028056,2]
[381356972,1756151349507,-500.0,0.00028056,2]
[381356973,1756151349527,-500.0,0.00028056,2]
[381356974,1756151349549,-500.0,0.00028056,2]
[381356975,1756151349570,-500.0,0.00028056,2]
[381356976,1756151349590,-500.0,0.00028056,2]
[381356977,1756151349610,-194.72886448,0.00028056,2]
[381356978,1756151349629,-500.0,0.00028056,2]
[381356979,1756151349651,-373.33440288,0.00028056,2]
[381356980,1756151349674,-500.0,0.00028056,2]
[381356981,1756151349694,-500.0,0.00028056,2]
[381356982,1756151349714,-190.01865517,0.00028056,2]
[381356983,1756151349736,-500.0,0.00028056,2]
[381356984,1756151349756,-500.0,0.00028056,2]
[381356985,1756151349778,-500.0,0.00028056,2]
[381356986,1756151349799,-500.0,0.00028056,2]
[381356987,1756151349820,-500.0,0.00028056,2]
[381356988,1756151349842,-500.0,0.00028056,2]
[381356989,1756151349862,-500.0,0.00028056,2]
[381356990,1756151349883,-500.0,0.00028056,2]
[381356991,1756151349902,-500.0,0.00028056,2]
[381356992,1756151349927,-500.0,0.00028056,2]
[381356993,1756151349949,-328.34552333,0.00028056,2]
[381356994,1756151349970,-289.09490772,0.00028056,2]
[381356995,1756151349991,-500.0,0.00028056,2]
[381356996,1756151350016,-500.0,0.00028056,2]
[381356997,1756151350039,-500.0,0.00028056,2]
[381356998,1756151350062,-500.0,0.00028056,2]
[381356999,1756151350085,-500.0,0.00028056,2]
[381357000,1756151350109,-500.0,0.00028056,2]
[381357001,1756151350131,-500.0,0.00028056,2]
[381357002,1756151350153,-500.0,0.00028056,2]
[381357003,1756151350177,-500.0,0.00028056,2]
[381357004,1756151350199,-500.0,0.00028056,2]
[381357005,1756151350219,-356.09078587,0.00028056,2]
[381357006,1756151350239,-500.0,0.00028056,2]
[381357007,1756151350260,-1200.0,0.00028056,2]
[381357008,1756151350280,-22607.33681851,0.00028057,2]
[381357009,1756151357068,-172.99193306,0.00026948,2]
[381357010,1756151357092,-23658.53278389,0.00028057,2]
[381357011,1756151357113,-7856.05861383,0.00028063,2]
[381357012,1756151358358,160.0,0.0002692,2]
[381357013,1756151362744,164.038871,0.00013699,2]
[381357014,1756151362899,164.038871,0.00022505,2]
[381357015,1756151366114,-8747.01005537,0.00028063,2]
[381357016,1756151366137,-879.2378711,0.00028063,2]
[381357017,1756151366161,-500.0,0.00028073,5]
[381357018,1756151366186,-500.0,0.00028073,5]
[381357019,1756151366208,-500.0,0.00028073,5]
[381357020,1756151366230,-500.0,0.00028073,5]
[381357021,1756151366252,-245.44409642,0.00028073,5]
[381357022,1756151366274,-376.84,0.000281,7]
[381357023,1756151366296,-185.686603,0.00028109,2]
[381357024,1756151366318,-1913.27382367,0.00028155,15]
[381357025,1756151366339,-500.0,0.0002833,2]
[381357026,1756151366361,-4081.99856109,0.00028479,2]
[381357027,1756151374082,-1650.59103111,0.00028479,2]
[381357028,1756151374109,-489.82548885,0.00028533,10]
[381357029,1756151374129,-500.0,0.00028604,2]
[381357030,1756151374150,-1000.0,0.00028621,5]
[381357031,1756151374171,-1000.0,0.00028621,5]
[381357032,1756151374196,-325.91744016,0.00028621,5]
[381357033,1756151387898,301.16427027,0.0002699,2]
[381357183,1756151435843,-502.38628705,0.00028073,5]
[381357184,1756151435852,-500.0,0.00028073,5]
[381357185,1756151435861,-79.88865692,0.00028073,5]
[381357186,1756151435948,-421.83324508,0.00028073,5]
[381357187,1756151435958,-633.86486829,0.00028073,5]
[381357188,1756151435967,-500.0,0.00028073,5]
[381357189,1756151435977,-500.0,0.00028073,5]
[381357190,1756151435987,-500.0,0.00028073,5]
[381357191,1756151435996,-158.0,0.00028393,120]
[381357192,1756151436005,-199.0,0.00028433,10]
[381357193,1756151436015,-674.08255984,0.00028621,5]
[381357194,1756151436025,-312.27758741,0.00028621,5]
[381357195,1756151436037,-780.68877824,0.00028621,5]
[381357196,1756151436046,-1000.0,0.00028621,5]
[381357197,1756151436055,-618.61357223,0.00028811,5]
[381357198,1756151436066,-500.0,0.00028811,5]
[381357199,1756151436075,-332.05,0.00028932,30]
[381357200,1756151436085,-1200.0,0.00029166,2]
[381357201,1756151436094,-300.0,0.00029167,2]
[381357202,1756151436104,-300.0,0.00029167,2]
[381357203,1756151436113,-300.0,0.00029167,2]
[381357204,1756151436124,-300.0,0.00029167,2]
[381357205,1756151436133,-1500.0,0.00029168,5]
[381357206,1756151436143,-131.58938891,0.00029168,5]
[381357207,1756151436155,-1368.41061109,0.00029168,5]
[381357208,1756151436164,-509.26859312,0.00029168,5]
[381357209,1756151436174,-1500.0,0.00029168,5]
[381357210,1756151436183,-1000.0,0.00029359,5]
[381357211,1756151436192,-23877.32079581,0.00029361,2]
[381357397,1756151438507,-9676.46728504,0.00029361,2]
[381357399,1756151438519,-4307.14231312,0.00029361,2]
[381357412,1756151438631,-12139.06960603,0.00029361,2]
[381357414,1756151438641,-16603.0686692,0.00029362,2]
[381357416,1756151438651,-879.2378711,0.00029362,2]
[381357418,1756151438661,-500.0,0.00029371,2]
[381357421,1756151438670,-451.60959297,0.00029371,2]
[381357423,1756151438680,-500.0,0.00029371,2]
[381357424,1756151438689,-500.0,0.00029371,2]
[381357426,1756151438699,-500.0,0.00029371,2]
[381357428,1756151438709,-500.0,0.00029371,2]
[381357430,1756151438718,-500.0,0.00029371,2]
[381357432,1756151438728,-265.664996,0.00029371,2]
[381357434,1756151438737,-500.0,0.00029371,2]
[381357436,1756151438747,-500.0,0.00029371,2]
[381357438,1756151438756,-500.0,0.00029371,2]
[381357440,1756151438765,-500.0,0.00029371,2]
[381357442,1756151438774,-500.0,0.00029371,2]
[381357444,1756151438784,-500.0,0.00029371,2]
[381357446,1756151438793,-500.0,0.00029371,2]
[381357448,1756151438802,-500.0,0.00029371,2]
[381357450,1756151438811,-500.0,0.00029371,2]
[381357452,1756151438820,-500.0,0.00029371,2]
[381357454,1756151438829,-500.0,0.00029371,2]
[381357456,1756151438839,-500.0,0.00029371,2]
[381357458,1756151438849,-504.54545455,0.00029371,2]
[381357460,1756151438858,-504.54545455,0.00029371,2]
[381357462,1756151438868,-504.54545455,0.00029371,2]
[381357464,1756151438878,-504.54545455,0.00029371,2]
[381357466,1756151438888,-504.54545455,0.00029371,2]
[381357468,1756151438897,-504.54545455,0.00029371,2]
[381357470,1756151438906,-504.54545455,0.00029371,2]
[381357472,1756151438915,-504.54545455,0.00029371,2]
[381357474,1756151438926,-504.54545455,0.00029371,2]
[381357476,1756151438936,-504.54545455,0.00029371,2]
[381357478,1756151438946,-507.11629469,0.00029373,5]
[381357480,1756151438955,-500.0,0.00029373,5]
[381357482,1756151438964,-492.83434634,0.00029373,5]
[381357484,1756151438973,-500.0,0.00029373,5]
[381357486,1756151438982,-500.92855203,0.00029373,5]
[381357488,1756151438991,-500.0,0.00029373,2]
[381357490,1756151439000,-500.0,0.00029373,5]
[381357492,1756151439011,-249.52595729,0.00029373,2]
[381357493,1756151439021,-427.83729195,0.00029373,5]
[381357496,1756151439039,-72.16270805,0.00029373,5]
[381357498,1756151439049,-500.0,0.00029373,5]
[381357500,1756151439059,-500.0,0.00029373,5]
[381357502,1756151439068,-500.0,0.00029373,5]
[381357504,1756151439078,-500.0,0.00029373,5]
[381357506,1756151439087,-5336.0892766,0.00029374,2]
[381357507,1756151439096,-178.553047,0.00029598,2]
[381357509,1756151439106,-178.553047,0.00029598,61]
[381357511,1756151439115,-178.553047,0.00029598,120]
[381357513,1756151439125,-200.0,0.00029714,15]
[381357515,1756151439134,-1500.0,0.00029716,5]
[381357517,1756151439144,-2000.0,0.00029716,5]
[381357519,1756151439154,-172.0,0.00029723,120]
[381357521,1756151439164,-158.0,0.00029813,120]
[381357523,1756151439174,-215.91153094,0.00029907,5]
[381357525,1756151439184,-1000.0,0.00029921,5]
[381357527,1756151439194,-588.0024986,0.00029921,5]
[381357529,1756151439204,-1000.0,0.00029921,2]
[381357531,1756151439214,-1000.0,0.00029921,5]
[381357533,1756151439224,-1000.0,0.00029921,5]
[381357535,1756151439234,-1000.0,0.00029921,5]
[381357537,1756151439243,-226.98812925,0.00029921,5]
[381357539,1756151439253,-1791.60981873,0.00030216,2]
[381357541,1756151439262,-1000.0,0.00030259,14]
[381357543,1756151439271,-227.09197791,0.00030264,5]
[381357545,1756151439283,-2272.90802209,0.00030264,5]
[381357547,1756151439292,-1680.0,0.00030298,2]
[381357549,1756151439301,-1500.0,0.00030468,2]
[381357551,1756151439311,-1500.0,0.00030468,5]
[381357553,1756151439319,-1500.0,0.00030468,5]
[381357555,1756151439328,-1500.0,0.00030468,5]
[381357557,1756151439338,-16603.0686692,0.00030634,2]
[381357559,1756151439347,-879.2378711,0.00030634,2]
[381357561,1756151439356,-500.0,0.00030644,5]
[381357563,1756151439365,-3000.0,0.00030812,5]
[381357565,1756151439375,-161.0,0.00030853,120]
[381357567,1756151439384,-1010.55193286,0.0003089,2]
[381357569,1756151439392,-160.15851129,0.000309,14]
[381357571,1756151439402,-500.0,0.00030973,5]
[381357573,1756151439411,-500.0,0.00030973,5]
[381357575,1756151439420,-500.0,0.00030973,5]
[381357577,1756151439430,-500.0,0.00030973,5]
[381357578,1756151439440,-423.10410092,0.00030973,5]
[381357580,1756151439449,-500.0,0.00030973,5]
[381357582,1756151439458,-500.0,0.00030973,5]
[381357604,1756151439651,-500.0,0.00030973,5]
[381357607,1756151439666,-158.84949824,0.00030973,2]
[381357609,1756151439676,-500.0,0.00030973,5]
[381357611,1756151439685,-500.0,0.00030973,5]
[381357613,1756151439695,-500.0,0.00030973,5]
[381357615,1756151439704,-501.28576784,0.00030973,5]
[381357616,1756151439714,-500.0,0.00030973,5]
[381357619,1756151439724,-500.0,0.00030973,5]
[381357621,1756151439734,-500.39908462,0.00030973,5]
[381357622,1756151439743,-500.0,0.00030973,5]
[381357624,1756151439752,-500.0,0.00030973,5]
[381357626,1756151439762,-500.0,0.00030973,5]
[381357628,1756151439772,-500.0,0.00030973,5]
[381357630,1756151439781,-500.0,0.00030973,5]
[381357632,1756151439790,-500.0,0.00030973,5]
[381357634,1756151439800,-500.0,0.00030973,5]
[381357636,1756151439809,-500.0,0.00030973,5]
[381357638,1756151439818,-500.0,0.00030973,5]
[381357640,1756151439828,-11513.96649361,0.0003098,2]
[381357644,1756151439853,-5089.10217559,0.0003098,2]
[381357646,1756151439862,-473.72436949,0.0003098,2]
[381357648,1756151439873,-405.51350161,0.0003098,2]
[381357650,1756151439882,-17520.37391098,0.0003099,2]
[381357652,1756151439893,-3505.2267423,0.0003099,2]
[381357655,1756151439905,-1238.34870383,0.0003099,2]
[381357774,1756151442340,-199.0,0.00028293,120]
[381357775,1756151442350,-920.22500001,0.0003099,2]
[381357776,1756151442362,-5176.30172937,0.0003099,2]
[381357777,1756151442407,-906.0,0.0003099,2]
[381357843,1756151443788,-199.0,0.00029498,120]
[381357844,1756151443798,-1053.26005224,0.0003099,2]
[381357889,1756151444896,-1913.62550658,0.0003099,2]
[381357890,1756151445054,408.7295867,0.000199,2]
[381357891,1756151445124,408.72958648,0.00021627,2]
[381357892,1756151445202,408.72958648,0.00023353,2]
[381357893,1756151445304,408.72958648,0.0002508,2]
[381357894,1756151445353,408.72958648,0.00026806,6]
[381357979,1756151446745,-408.72958648,0.00028533,10]
[381357981,1756151446754,-408.72958648,0.00030259,13]
[381357982,1756151446765,-3719.07505267,0.0003099,2]
[381357993,1756151446864,-3675.98868946,0.0003099,2]
[381357996,1756151446875,-1778.91811513,0.0003099,2]
[381358001,1756151446915,-36.20935909,0.0003099,2]
[381358087,1756151447775,-4500.0,0.0003099,2]
[381358300,1756151450030,4587.41223786,0.0002699,2]
[381359762,1756151539268,1738.10785341,0.00027,2]
[381359763,1756151562385,3003.57841555,0.00025147,2]
[381359764,1756151644851,331.82587748,0.000199,2]
[381359765,1756151644883,331.82587734,0.00021627,2]
[381359766,1756151644921,331.82587734,0.00023353,2]
[381359767,1756151644958,331.82587734,0.0002508,2]
[381359768,1756151645059,331.82587734,0.00026806,6]
[381359769,1756151665610,-160.0,0.00028054,2]
[381359770,1756151665639,-1200.0,0.00028055,2]
[381359771,1756151665666,-300.0,0.00028105,2]
[381359772,1756151665698,-300.0,0.00028105,2]
[381359773,1756151665727,-301.9077065,0.00028106,2]
[381359774,1756151666044,-5356.50416551,0.00028106,2]
[381359775,1756151666101,-119.69042149,0.00028106,2]
[381359776,1756151666129,-221.37,0.00028385,30]
[381359777,1756151666163,-331.82587734,0.00028533,10]
[381359778,1756151666194,-159.62,0.00028865,15]
[381359779,1756151666222,-360.0,0.00028952,2]